[Event "FIDE World Rapid-ch Open 2018"]
[White "Ponkratov, Pavel"]
[Black "Teterev, Vitaly"]
[Site "St. Petersburg"]
[Round "2.69"]
[Annotator "ChessBase"]
[Result "1/2-1/2"]
[Date "2018.12.26"]
[WhiteElo "2630"]
[BlackElo "2486"]
[PlyCount "152"]
[TimeControl "900+10"]

1. e4 {[%emt 0:0:0]} c5 {[%emt 0:0:0]} 2. Nf3 {[%emt 0:0:0]} d6 {[%emt 0:0:0]} 3. d4 {[%emt 0:0:2]} cxd4 {[%emt 0:0:0]} 4. Nxd4 {[%emt 0:0:1]} Nf6 {[%emt 0:0:0]} 5. Nc3 {[%emt 0:0:1]} a6 {[%emt 0:0:0]} 6. Be3 {[%emt 0:0:2]
} e6 {[%emt 0:0:4]} 7. Qf3 {[%emt 0:0:8]} Qc7 {[%emt 0:0:30]
} 8. Be2 {[%emt 0:0:2]} b5 {[%emt 0:0:8]} 9. a3 {[%emt 0:2:33]} Bb7 {[%emt 0:0:11]
} 10. 0-0-0 {[%emt 0:1:24]} Nbd7 {[%emt 0:0:9]} 11. Qg3 {[%emt 0:0:3]
} Nxe4 {[%emt 0:0:52]} 12. Nxe4 {[%emt 0:0:2]} Bxe4 {[%emt 0:0:0]} 13. Rhe1 {[%emt 0:0:12]} Rc8 {[%emt 0:0:46]} 14. c3 {[%emt 0:0:2]} d5 {[%emt 0:0:23]} 15. Qxc7 {[%emt 0:0:55]} Rxc7 {[%emt 0:0:1]} 16. f3 {[%emt 0:0:2]
} Bg6 {[%emt 0:0:5]} 17. f4 {[%emt 0:0:2]} Be4 {[%emt 0:0:0]} 18. Bf3 {[%emt 0:0:32]} Nc5 {[%emt 0:0:23]} 19. Bxe4 {[%emt 0:0:48]} dxe4 {[%emt 0:2:6]} 20. Kc2 {[%emt 0:0:3]} Be7 {[%emt 0:0:18]} 21. f5 {[%emt 0:0:2]
} e5 {[%emt 0:1:22]} 22. Ne2 {[%emt 0:0:44]} g6 {[%emt 0:0:24]
} 23. Rf1 {[%emt 0:0:17]} Nd7 {[%emt 0:2:3]} 24. Ng3 {[%emt 0:0:11]} Nf6 {[%emt 0:0:16]
} 25. Bg5 {[%emt 0:2:6]} Rc6 {[%emt 0:2:30]} 26. Bxf6 {[%emt 0:1:33]
} Rxf6 {[%emt 0:0:1]} 27. Rd5 {[%emt 0:0:1]} gxf5 {[%emt 0:0:0]} 28. Rxe5 {[%emt 0:0:39]} Rg8 {[%emt 0:1:8]} 29. Rfxf5 {[%emt 0:0:0]} Re6 {[%emt 0:0:46]} 30. Rxe6 {[%emt 0:0:48]} fxe6 {[%emt 0:0:1]} 31. Re5 {[%emt 0:0:3]} Kd7 {[%emt 0:1:24]} 32. Rxe4 {[%emt 0:1:10]} Bd6 {[%emt 0:0:2]
} 33. Re3 {[%emt 0:1:56]} h5 {[%emt 0:1:18]} 34. Kb3 {[%emt 0:0:0]} h4 {[%emt 0:1:17]} 35. Ne4 {[%emt 0:0:3]} Kc6 {[%emt 0:0:13]} 36. g3 {[%emt 0:0:15]} hxg3 {[%emt 0:0:22]} 37. hxg3 {[%emt 0:0:2]} Rg4 {[%emt 0:0:8]
} 38. Kc2 {[%emt 0:0:14]} a5 {[%emt 0:0:9]} 39. Kd3 {[%emt 0:0:0]} Bc7 {[%emt 0:0:4]} 40. Rf3 {[%emt 0:0:12]} Be5 {[%emt 0:0:3]} 41. b3 {[%emt 0:0:36]} a4 {[%emt 0:0:9]} 42. b4 {[%emt 0:1:8]} Kd5 {[%emt 0:0:0]} 43. Re3 {[%emt 0:0:1]} Rg7 {[%emt 0:0:18]} 44. Rf3 {[%emt 0:1:7]} Rg6 {[%emt 0:0:9]} 45. Rf1 {[%emt 0:0:12]} Rg7 {[%emt 0:0:5]} 46. Rf3 {[%emt 0:0:44]
} Rg6 {[%emt 0:0:1]} 47. Rf8 {[%emt 0:0:3]} Bxg3 {[%emt 0:0:0]} 48. Rc8 {[%emt 0:0:42]} Bd6 {[%emt 0:0:21]} 49. c4+ {[%emt 0:0:13]} bxc4+ {[%emt 0:0:2]} 50. Rxc4 {[%emt 0:0:1]} e5 {[%emt 0:0:16]} 51. Rc8 {[%emt 0:0:57]
} Be7 {[%emt 0:0:18]} 52. Ra8 {[%emt 0:0:1]} Rg1 {[%emt 0:0:0]} 53. Ra5+ {[%emt 0:0:19]} Kc6 {[%emt 0:0:7]} 54. Rxe5 {[%emt 0:0:8]} Bd8 {[%emt 0:0:3]} 55. Rc5+ {[%emt 0:0:5]} Kb6 {[%emt 0:0:6]} 56. Nc3 {[%emt 0:0:4]
} Rg3+ {[%emt 0:0:12]} 57. Ke4 {[%emt 0:0:3]} Kb7 {[%emt 0:0:0]} 58. Kd5 {[%emt 0:0:39]} Bb6 {[%emt 0:0:18]} 59. Rc4 {[%emt 0:0:1]} Rg5+ {[%emt 0:0:2]} 60. Ke6 {[%emt 0:0:3]} Rg6+ {[%emt 0:0:5]} 61. Ke5 {[%emt 0:0:6]
} Rg3 {[%emt 0:0:6]} 62. Ke4 {[%emt 0:0:32]} Re3+ {[%emt 0:0:0]} 63. Kf4 {[%emt 0:0:1]} Rh3 {[%emt 0:0:1]} 64. Ke5 {[%emt 0:0:3]} Rd3 65. b5 {[%emt 0:0:9]} Re3+ {[%emt 0:0:13]} 66. Kd6 {[%emt 0:0:3]} Rd3+ {[%emt 0:0:5]
} 67. Ke6 {[%emt 0:0:20]} Re3+ {[%emt 0:0:4]} 68. Ne4 {[%emt 0:0:2]
} Rxa3 {[%emt 0:0:11]} 69. Nd6+ {[%emt 0:0:2]} Kb8 {[%emt 0:0:0]} 70. Kd7 {[%emt 0:0:17]} Rd3 {[%emt 0:0:11]} 71. Kc6 {[%emt 0:0:25]} Bc7 {[%emt 0:0:17]} 72. Ne4 {[%emt 0:0:18]} a3 {[%emt 0:0:25]} 73. Ra4 {[%emt 0:0:1]
} Be5 {[%emt 0:0:15]} 74. b6 {[%emt 0:0:15]} Rd4 {[%emt 0:0:0]} 75. Rxa3 {[%emt 0:0:13]} Rxe4 {[%emt 0:0:6]} 76. b7 {[%emt 0:0:1]} Rc4+ 1/2-1/2

[Event "FIDE World Rapid-ch Open 2018"]
[White "Kobo, Ori"]
[Black "Khismatullin, Denis"]
[Site "St. Petersburg"]
[Round "2.70"]
[Annotator "ChessBase"]
[Result "1/2-1/2"]
[Date "2018.12.26"]
[WhiteElo "2494"]
[BlackElo "2621"]
[PlyCount "80"]
[TimeControl "900+10"]

1. Nf3 {[%emt 0:0:0]} Nf6 {[%emt 0:0:0]} 2. c4 {[%emt 0:0:0]} e6 {[%emt 0:0:3]
} 3. g3 {[%emt 0:0:0]} a6 {[%emt 0:0:9]} 4. Bg2 {[%emt 0:0:0]} b5 {[%emt 0:0:2]} 5. b3 {[%emt 0:0:1]} c5 {[%emt 0:0:24]} 6. 0-0 {[%emt 0:0:12]
} Bb7 {[%emt 0:0:2]} 7. Nc3 {[%emt 0:0:8]} b4 {[%emt 0:1:11]
} 8. Na4 {[%emt 0:0:2]} d6 {[%emt 0:0:4]} 9. d4 {[%emt 0:0:38]} cxd4 {[%emt 0:0:52]
} 10. Qxd4 {[%emt 0:0:2]} Be7 {[%emt 0:1:39]} 11. Qd2 {[%emt 0:2:0]
} a5 {[%emt 0:0:49]} 12. a3 {[%emt 0:0:17]} Na6 {[%emt 0:0:27]
} 13. axb4 {[%emt 0:0:35]} Nxb4 {[%emt 0:0:58]} 14. Bb2 {[%emt 0:1:7]} 0-0 {[%emt 0:0:11]} 15. Nc3 {[%emt 0:0:50]} Qb8 {[%emt 0:1:41]} 16. Nd4 {[%emt 0:1:31]
} Bxg2 {[%emt 0:0:18]} 17. Kxg2 {[%emt 0:0:1]} Qb7+ {[%emt 0:0:0]} 18. f3 {[%emt 0:0:50]} Rfd8 {[%emt 0:0:26]} 19. e4 {[%emt 0:2:11]} Nd7 {[%emt 0:0:4]} 20. Na2 {[%emt 0:1:36]} Nxa2 {[%emt 0:3:22]} 21. Rxa2 {[%emt 0:0:2]
} Nc5 {[%emt 0:0:1]} 22. Rxa5 {[%emt 0:2:0]} Nxb3 {[%emt 0:0:0]} 23. Nxb3 {[%emt 0:0:2]} Qxb3 {[%emt 0:0:2]} 24. Qc3 {[%emt 0:2:3]
} Qxc3 {[%emt 0:0:10]} 25. Bxc3 {[%emt 0:0:1]} Rac8 {[%emt 0:2:47]} 26. Ra7 {[%emt 0:0:13]} Bf8 {[%emt 0:0:55]} 27. Ra4 {[%emt 0:0:57]} Rc6 {[%emt 0:0:0]} 28. Bd4 {[%emt 0:0:45]} Rdc8 {[%emt 0:0:11]} 29. Rc1 {[%emt 0:0:3]} f6 {[%emt 0:0:2]} 30. h4 {[%emt 0:1:22]} d5 {[%emt 0:0:12]} 31. exd5 {[%emt 0:0:0]} exd5 {[%emt 0:0:1]} 32. c5 {[%emt 0:0:6]} Bxc5 {[%emt 0:0:10]} 33. Rd1 {[%emt 0:0:13]} Bf8 {[%emt 0:1:14]} 34. Ra5 {[%emt 0:0:6]} Rd8 {[%emt 0:0:20]
} 35. Bf2 {[%emt 0:0:24]} Rcd6 {[%emt 0:0:7]} 36. Bc5 {[%emt 0:0:9]
} R6d7 {[%emt 0:0:4]} 37. Bb6 {[%emt 0:0:10]} Rb8 {[%emt 0:0:0]} 38. Bf2 {[%emt 0:0:9]} Rbd8 {[%emt 0:0:27]} 39. Bb6 {[%emt 0:0:1]} Rb8 {[%emt 0:0:9]} 40. Bf2 {[%emt 0:0:2]} Rbd8 {[%emt 0:0:10]} 1/2-1/2

[Event "FIDE World Rapid-ch Open 2018"]
[White "Adly, Ahmed"]
[Black "Carlsson, Pontus"]
[Site "St. Petersburg"]
[Round "2.71"]
[Annotator "ChessBase"]
[Result "1-0"]
[Date "2018.12.26"]
[WhiteElo "2626"]
[BlackElo "2463"]
[PlyCount "57"]
[TimeControl "900+10"]

1. Nf3 Nf6 2. c4 c5 3. g3 b6 4. Bg2 Bb7 5. 0-0 e6 6. Nc3 Be7 7. d4 cxd4 8. Qxd4 0-0 9. Rd1 Nc6 10. Qf4 Qb8 11. Qh4 d6 12. g4 Ne4 13. Ng5 Bxg5 14. Bxg5 Nxc3 15. bxc3 Ne5 16. e4 f6 17. Bc1 Nxc4 18. g5 Qc7 19. Rd3 fxg5 20. Bxg5 Rf7 21. Rh3 g6 22. f4 Qc5+ 23. Kh1 Ne3 24. Bf3 d5 25. f5 exf5 26. Bxe3 Qxe3 27. exf5 Qxc3 28. Rg1 Qg7 29. fxg6 1-0

[Event "FIDE World Rapid-ch Open 2018"]
[White "Antipov, Mikhail Al."]
[Black "Apryshko, Gleb"]
[Site "St. Petersburg"]
[Round "2.72"]
[Annotator "ChessBase"]
[Result "1-0"]
[Date "2018.12.26"]
[WhiteElo "2589"]
[BlackElo "2385"]
[PlyCount "81"]
[TimeControl "900+10"]

1. e4 {[%emt 0:0:0]} g6 {[%emt 0:2:13]} 2. d4 {[%emt 0:0:0]} Bg7 {[%emt 0:0:0]} 3. Nc3 {[%emt 0:0:0]} a6 {[%emt 0:0:1]} 4. Be3 {[%emt 0:0:21]} d6 {[%emt 0:0:6]} 5. g4 {[%emt 0:0:6]} b5 {[%emt 0:0:29]} 6. Bg2 {[%emt 0:0:0]} Bb7 {[%emt 0:0:4]} 7. h4 {[%emt 0:0:8]} h5 {[%emt 0:1:8]} 8. gxh5 {[%emt 0:0:18]
} Rxh5 {[%emt 0:0:1]} 9. Nge2 {[%emt 0:0:5]} e5 {[%emt 0:0:0]} 10. Bg5 {[%emt 0:3:9]} Rxg5 {[%emt 0:3:41]} 11. hxg5 {[%emt 0:0:2]} Qxg5 {[%emt 0:0:0]} 12. Kf1 {[%emt 0:1:15]} exd4 {[%emt 0:1:35]} 13. Nxd4 {[%emt 0:0:4]
} Qc5 {[%emt 0:0:18]} 14. Nb3 {[%emt 0:0:29]} Qc4+ {[%emt 0:0:0]} 15. Kg1 {[%emt 0:0:8]} Bxc3 {[%emt 0:0:15]} 16. bxc3 {[%emt 0:0:4]} Nc6 {[%emt 0:0:31]} 17. Qd3 {[%emt 0:1:38]} Ne5 {[%emt 0:0:14]} 18. Qe3 {[%emt 0:0:30]
} Qe6 {[%emt 0:0:55]} 19. a4 {[%emt 0:1:24]} Nc4 {[%emt 0:0:0]} 20. Qg5 {[%emt 0:0:38]} Qe7 {[%emt 0:1:6]} 21. Qxe7+ {[%emt 0:0:27]} Kxe7 {[%emt 0:0:1]} 22. e5 {[%emt 0:2:18]} Bxg2 {[%emt 0:0:2]} 23. Kxg2 {[%emt 0:0:1]
} Rc8 {[%emt 0:1:45]} 24. axb5 {[%emt 0:0:2]} axb5 {[%emt 0:0:0]} 25. exd6+ {[%emt 0:0:18]} cxd6 {[%emt 0:0:5]} 26. Nd4 {[%emt 0:0:0]} Kf6 {[%emt 0:0:22]} 27. Rh3 {[%emt 0:0:43]} Rc5 {[%emt 0:0:43]} 28. Rf3+ {[%emt 0:0:13]} Kg7 {[%emt 0:0:32]} 29. Ra7 {[%emt 0:0:2]} Rg5+ {[%emt 0:0:5]
} 30. Rg3 {[%emt 0:0:1]} Re5 {[%emt 0:0:29]} 31. Rb7 {[%emt 0:0:0]} Nf6 {[%emt 0:0:36]} 32. f4 {[%emt 0:0:23]} Rd5 {[%emt 0:0:27]} 33. Rd3 {[%emt 0:2:23]} Na3 {[%emt 0:0:29]} 34. Ne6+ {[%emt 0:0:14]} Kg8 {[%emt 0:0:1]
} 35. Rb8+ {[%emt 0:0:2]} Kh7 {[%emt 0:0:0]} 36. Ng5+ {[%emt 0:0:5]
} Kh6 {[%emt 0:0:18]} 37. Nxf7+ {[%emt 0:0:6]} Kh5 {[%emt 0:0:0]} 38. Rg3 {[%emt 0:0:28]} Kh4 {[%emt 0:0:21]} 39. Rh8+ {[%emt 0:0:10]} Nh5 {[%emt 0:0:6]} 40. Ng5 {[%emt 0:0:10]} Rd2+ {[%emt 0:0:4]} 41. Kf3 {[%emt 0:0:2]
} 1-0

[Event "FIDE World Rapid-ch Open 2018"]
[White "Hirneise, Tobias"]
[Black "Vallejo Pons, Francisco"]
[Site "St. Petersburg"]
[Round "2.73"]
[Annotator "ChessBase"]
[Result "1/2-1/2"]
[Date "2018.12.26"]
[WhiteElo "2464"]
[BlackElo "2695"]
[PlyCount "103"]
[TimeControl "900+10"]

1. e4 {[%emt 0:0:0]} e5 {[%emt 0:0:0]} 2. Nf3 {[%emt 0:0:0]} Nc6 {[%emt 0:0:0]
} 3. Bb5 {[%emt 0:0:0]} a6 {[%emt 0:0:0]} 4. Ba4 {[%emt 0:0:0]} b5 {[%emt 0:0:0]} 5. Bb3 {[%emt 0:0:0]} Na5 {[%emt 0:0:0]} 6. d4 {[%emt 0:0:23]
} exd4 {[%emt 0:0:17]} 7. Qxd4 {[%emt 0:1:27]} Bb7 {[%emt 0:0:0]} 8. Nc3 {[%emt 0:3:16]} d6 {[%emt 0:1:18]} 9. Qd3 {[%emt 0:1:33]} Be7 {[%emt 0:2:41]
} 10. 0-0 {[%emt 0:0:7]} Nf6 {[%emt 0:0:8]} 11. Re1 {[%emt 0:0:0]} 0-0 {[%emt 0:0:10]} 12. Bf4 {[%emt 0:0:24]} Re8 {[%emt 0:0:52]} 13. Rad1 {[%emt 0:0:12]} Nxb3 {[%emt 0:3:46]} 14. axb3 {[%emt 0:0:3]} Bf8 {[%emt 0:0:28]
} 15. Bg5 {[%emt 0:0:15]} h6 {[%emt 0:0:13]} 16. Bh4 {[%emt 0:0:0]} g5 {[%emt 0:1:43]} 17. Bg3 {[%emt 0:0:2]} b4 {[%emt 0:0:29]} 18. Nd5 {[%emt 0:0:4]} Nxd5 {[%emt 0:0:14]} 19. exd5 {[%emt 0:0:1]} Qf6 {[%emt 0:0:2]
} 20. Qc4 {[%emt 0:1:42]} Rxe1+ {[%emt 0:0:16]} 21. Nxe1 {[%emt 0:0:22]
} Re8 {[%emt 0:0:7]} 22. Qxb4 {[%emt 0:0:28]} Ba8 {[%emt 0:0:0]} 23. Qa4 {[%emt 0:0:38]} Qe7 {[%emt 0:0:33]} 24. Nd3 {[%emt 0:2:20]} Qe2 {[%emt 0:0:41]} 25. Rf1 {[%emt 0:1:12]} Bxd5 {[%emt 0:0:35]} 26. h4 {[%emt 0:0:58]
} gxh4 {[%emt 0:0:15]} 27. Nf4 {[%emt 0:0:42]} Qe5 {[%emt 0:0:0]} 28. Nxd5 {[%emt 0:0:18]} hxg3 {[%emt 0:0:3]} 29. Qxe8 {[%emt 0:0:31]} gxf2+ {[%emt 0:0:4]} 30. Rxf2 {[%emt 0:0:5]} Qxd5 {[%emt 0:0:2]} 31. Rf3 {[%emt 0:0:41]} Qd4+ {[%emt 0:0:21]} 32. Kh2 {[%emt 0:0:18]} Qh4+ {[%emt 0:0:0]} 33. Rh3 {[%emt 0:0:2]} Qf4+ {[%emt 0:0:3]} 34. Rg3+ {[%emt 0:0:1]
} Kh7 {[%emt 0:0:1]} 35. Qxf8 {[%emt 0:0:51]} Qh4+ {[%emt 0:0:1]} 36. Rh3 {[%emt 0:0:1]} Qf4+ {[%emt 0:0:2]} 37. Kg1 {[%emt 0:0:2]} Qc1+ {[%emt 0:0:0]} 38. Kf2 {[%emt 0:0:17]} Qd2+ {[%emt 0:0:6]} 39. Kf3 {[%emt 0:0:17]} Qd5+ {[%emt 0:0:24]} 40. Ke3 {[%emt 0:0:13]} Qc5+ {[%emt 0:0:23]} 41. Kd2 {[%emt 0:0:31]
} Qf2+ {[%emt 0:0:7]} 42. Kc3 {[%emt 0:0:14]} Qc5+ {[%emt 0:0:0]} 43. Kd3 {[%emt 0:0:6]} Qd5+ {[%emt 0:0:8]} 44. Ke3 {[%emt 0:0:9]} Qc5+ {[%emt 0:0:10]} 45. Kf3 {[%emt 0:0:14]} Qf5+ {[%emt 0:0:7]} 46. Kg3 {[%emt 0:0:9]
} Qg5+ {[%emt 0:0:11]} 47. Kf2 {[%emt 0:0:7]} Qd2+ {[%emt 0:0:0]} 48. Kg1 {[%emt 0:0:15]} Qc1+ {[%emt 0:0:3]} 49. Kh2 {[%emt 0:0:9]} Qf4+ {[%emt 0:0:2]} 50. Rg3 {[%emt 0:0:1]} Qh4+ {[%emt 0:0:1]} 51. Rh3 {[%emt 0:0:16]
} Qf4+ {[%emt 0:0:8]} 52. Rg3 {[%emt 0:0:10]} 1/2-1/2

[Event "FIDE World Rapid-ch Open 2018"]
[White "Van Foreest, Jorden"]
[Black "Kovalev, Vladislav"]
[Site "St. Petersburg"]
[Round "2.74"]
[Annotator "ChessBase"]
[Result "1-0"]
[Date "2018.12.26"]
[WhiteElo "2614"]
[BlackElo "2683"]
[PlyCount "92"]
[TimeControl "900+10"]

1. e4 e5 2. Nf3 Nc6 3. Bc4 Nf6 4. d3 Bc5 5. c3 d6 6. 0-0 a6 7. a4 Ba7 8. Re1 h6 9. Nbd2 0-0 10. Nf1 Ng4 11. Re2 Be6 12. Bxe6 fxe6 13. h3 Rxf3 14. gxf3 Nf6 15. Ng3 Nh7 16. Kg2 Qf6 17. Be3 Rf8 18. Bxa7 Qxf3+ 19. Kh2 Nxa7 20. Qb3 h5 21. Qxe6+ Kh8 22. Qg6 Rf6 23. Qe8+ Rf8 24. Qg6 Rf6 25. Qe8+ Rf8 26. Qxh5 Qxd3 27. Nf5 g6 28. Qxg6 Rg8 29. Qh5 Rg5 30. Qe8+ Rg8 31. Qh5 Rg5 32. Re3 Rxh5 33. Rxd3 Nf6 34. Re1 Nc6 35. Kg2 Nd8 36. Nxd6 Ne6 37. Rf3 Nf4+ 38. Rxf4 exf4 39. Nxb7 Kg7 40. Nd8 Rh4 41. Ne6+ Kf7 42. Nxc7 Nh7 43. e5 Ke7 44. e6 Nf6 45. Nxa6 f3+ 46. Kxf3 Rxh3+ {Ke4} 1-0

[Event "FIDE World Rapid-ch Open 2018"]
[White "Teske, Henrik"]
[Black "Tissir, Mohamed"]
[Site "St. Petersburg"]
[Round "2.76"]
[Annotator "ChessBase"]
[Result "1-0"]
[Date "2018.12.26"]
[WhiteElo "2483"]
[BlackElo "2387"]
[PlyCount "99"]
[TimeControl "900+10"]

1. e4 {[%emt 0:1:46]} c5 {[%emt 0:0:0]} 2. Nf3 {[%emt 0:0:3]} d6 {[%emt 0:0:0]} 3. Nc3 {[%emt 0:0:6]} a6 {[%emt 0:0:0]} 4. e5 {[%emt 0:0:4]} dxe5 {[%emt 0:0:15]} 5. Nxe5 {[%emt 0:0:1]} Nd7 {[%emt 0:0:1]} 6. d4 {[%emt 0:0:0]} cxd4 {[%emt 0:1:51]} 7. Qxd4 {[%emt 0:0:4]} e6 {[%emt 0:0:1]} 8. Nc4 {[%emt 0:1:1]} b5 {[%emt 0:5:11]} 9. Nd6+ {[%emt 0:0:18]} Bxd6 {[%emt 0:0:2]
} 10. Qxd6 {[%emt 0:0:5]} Bb7 {[%emt 0:0:2]} 11. Bf4 {[%emt 0:0:23]
} Qb6 {[%emt 0:0:37]} 12. 0-0-0 {[%emt 0:0:24]} Qxd6 {[%emt 0:0:0]} 13. Bxd6 {[%emt 0:0:5]} Ngf6 {[%emt 0:0:3]} 14. f3 {[%emt 0:0:4]} 0-0-0 {[%emt 0:0:21]} 15. a4 {[%emt 0:0:4]} bxa4 {[%emt 0:0:24]} 16. Nxa4 {[%emt 0:0:5]
} Nd5 {[%emt 0:0:3]} 17. Rd4 {[%emt 0:0:38]} N7b6 {[%emt 0:0:0]} 18. Nxb6+ {[%emt 0:1:9]} Nxb6 {[%emt 0:0:1]} 19. Be2 {[%emt 0:0:28]} Nd5 {[%emt 0:0:9]} 20. Bc5 {[%emt 0:0:38]} Kb8 {[%emt 0:0:13]} 21. Rhd1 Rc8 22. Bd6+ {[%emt 0:2:0]} Ka7 {[%emt 0:0:1]} 23. R1d2 {[%emt 0:0:10]} Rc6 {[%emt 0:0:24]
} 24. Be5 {[%emt 0:0:28]} f6 {[%emt 0:0:0]} 25. Bg3 Rhc8 26. Bf2 {[%emt 0:0:26]} Ka8 {[%emt 0:0:2]} 27. b3 {[%emt 0:0:54]} g5 {[%emt 0:0:0]} 28. Kb2 {[%emt 0:0:41]} h5 {[%emt 0:1:47]} 29. h4 {[%emt 0:0:21]} Nf4 {[%emt 0:0:32]} 30. Bf1 {[%emt 0:0:10]} Nd5 {[%emt 0:1:44]} 31. Ra4 {[%emt 0:1:34]
} Kb8 {[%emt 0:1:47]} 32. hxg5 {[%emt 0:0:13]} fxg5 {[%emt 0:0:0]} 33. Ra5 {[%emt 0:0:18]} g4 {[%emt 0:0:8]} 34. c4 {[%emt 0:0:16]} Nf6 {[%emt 0:0:39]} 35. Re5 {[%emt 0:0:37]} Rf8 {[%emt 0:0:7]} 36. Be2 {[%emt 0:0:58]
} Kc8 {[%emt 0:0:17]} 37. Bh4 {[%emt 0:0:20]} gxf3 {[%emt 0:0:0]} 38. Bxf3 Rb6 39. Bf2 {[%emt 0:0:50]} Bxf3 {[%emt 0:0:15]} 40. Bxb6 {[%emt 0:0:8]
} Bg4 {[%emt 0:0:10]} 41. Ba5 {[%emt 0:0:9]} Nd7 {[%emt 0:0:0]} 42. Rg5 {[%emt 0:0:7]} Rf7 {[%emt 0:0:12]} 43. Ka3 Kb7 44. Bc3 {[%emt 0:0:19]
} Kc6 {[%emt 0:0:12]} 45. Ra5 {[%emt 0:0:12]} Kb7 {[%emt 0:0:0]} 46. Rd6 {[%emt 0:0:17]} Nb8 {[%emt 0:0:0]} 47. Rg5 {[%emt 0:0:11]} Kc7 {[%emt 0:0:36]} 48. Be5 {[%emt 0:0:18]} Nc6 {[%emt 0:0:0]} 49. Rxe6+ {[%emt 0:0:18]
} Kb7 {[%emt 0:0:22]} 50. Rh6 {[%emt 0:0:15]} 1-0

[Event "FIDE World Rapid-ch Open 2018"]
[White "Hirneise, Jens"]
[Black "Tari, Aryan"]
[Site "St. Petersburg"]
[Round "2.77"]
[Annotator "ChessBase"]
[Result "1/2-1/2"]
[Date "2018.12.26"]
[WhiteElo "2371"]
[BlackElo "2620"]
[PlyCount "138"]
[TimeControl "900+10"]

1. e4 {[%emt 0:0:0]} e5 {[%emt 0:0:0]} 2. Nf3 {[%emt 0:0:0]} Nc6 {[%emt 0:0:0]
} 3. Bb5 {[%emt 0:0:0]} a6 {[%emt 0:0:0]} 4. Ba4 {[%emt 0:0:0]} b5 {[%emt 0:0:1]} 5. Bb3 {[%emt 0:0:0]} g6 {[%emt 0:0:1]} 6. c3 {[%emt 0:0:22]
} Bg7 {[%emt 0:0:10]} 7. d4 {[%emt 0:0:20]} exd4 {[%emt 0:0:0]} 8. Nxd4 {[%emt 0:0:15]} Nge7 {[%emt 0:0:15]} 9. Bg5 {[%emt 0:0:19]} Bb7 {[%emt 0:0:21]} 10. Nxc6 {[%emt 0:0:52]} Bxc6 {[%emt 0:0:1]} 11. Bd5 {[%emt 0:0:15]
} h6 {[%emt 0:0:54]} 12. Bxc6 {[%emt 0:0:34]} dxc6 {[%emt 0:0:0]} 13. Qxd8+ {[%emt 0:0:15]} Rxd8 {[%emt 0:0:3]} 14. Bf4 {[%emt 0:0:29]} Rd7 {[%emt 0:0:26]} 15. Nd2 {[%emt 0:0:45]} g5 {[%emt 0:0:23]} 16. Be3 {[%emt 0:0:24]
} f5 {[%emt 0:0:23]} 17. Bc5 {[%emt 0:0:20]} Kf7 {[%emt 0:0:0]} 18. 0-0-0 {[%emt 0:0:48]} Rhd8 {[%emt 0:2:7]} 19. Rhe1 {[%emt 0:0:27]} Ng6 {[%emt 0:0:9]} 20. Kc2 {[%emt 0:3:30]} Nf4 {[%emt 0:0:29]} 21. Rg1 {[%emt 0:0:46]
} Nd3 {[%emt 0:1:17]} 22. Nb3 {[%emt 0:1:9]} fxe4 {[%emt 0:0:0]} 23. Be3 {[%emt 0:0:22]} Rd5 {[%emt 0:2:30]} 24. Nd2 {[%emt 0:0:34]} c5 {[%emt 0:2:32]} 25. Nxe4 {[%emt 0:0:39]} c4 {[%emt 0:0:1]} 26. b3 {[%emt 0:0:0]} Bf8 {[%emt 0:0:54]} 27. bxc4 {[%emt 0:1:3]} bxc4 {[%emt 0:0:2]} 28. Nd2 {[%emt 0:0:8]} Ne5 {[%emt 0:0:16]} 29. Bd4 {[%emt 0:0:37]} Nc6 {[%emt 0:1:57]
} 30. Be3 {[%emt 0:0:14]} Ne5 {[%emt 0:0:45]} 31. Bd4 {[%emt 0:0:0]} Ra5 {[%emt 0:0:1]} 32. Ra1 {[%emt 0:0:23]} Bg7 {[%emt 0:0:4]} 33. Rgb1 {[%emt 0:0:43]} Rad5 {[%emt 0:0:32]} 34. Rd1 {[%emt 0:0:40]} Ke6 {[%emt 0:0:41]
} 35. Rab1 {[%emt 0:0:47]} R8d7 {[%emt 0:1:10]} 36. Ne4 {[%emt 0:0:48]
} Bf8 {[%emt 0:0:3]} 37. Bxe5 {[%emt 0:0:28]} Rxe5 {[%emt 0:0:0]} 38. Rxd7 {[%emt 0:0:12]} Kxd7 {[%emt 0:0:1]} 39. f3 {[%emt 0:0:11]} Ra5 {[%emt 0:0:13]} 40. Rd1+ {[%emt 0:0:19]} Kc6 {[%emt 0:0:3]} 41. Kb1 {[%emt 0:0:9]
} Rb5+ {[%emt 0:0:13]} 42. Kc2 {[%emt 0:0:7]} Ra5 {[%emt 0:0:0]} 43. Kb1 {[%emt 0:0:5]} Ba3 {[%emt 0:0:5]} 44. Kc2 {[%emt 0:0:10]} Bd6 {[%emt 0:0:10]} 45. Kb2 {[%emt 0:0:27]} Ba3+ {[%emt 0:0:51]} 46. Kc2 {[%emt 0:0:3]
} Be7 {[%emt 0:0:2]} 47. Kb2 {[%emt 0:0:12]} Rb5+ {[%emt 0:0:0]} 48. Kc2 {[%emt 0:0:2]} Ba3 {[%emt 0:0:1]} 49. Rb1 {[%emt 0:0:4]} Kd5 {[%emt 0:0:4]} 50. Rxb5+ {[%emt 0:0:28]} axb5 {[%emt 0:0:1]} 51. Nf6+ {[%emt 0:0:13]
} Ke6 {[%emt 0:0:3]} 52. Ne4 {[%emt 0:0:10]} Be7 {[%emt 0:0:0]} 53. Kd2 {[%emt 0:0:15]} Kd5 {[%emt 0:0:4]} 54. Kc2 {[%emt 0:0:12]} g4 {[%emt 0:0:10]} 55. Nd2 {[%emt 0:0:8]} h5 {[%emt 0:0:3]} 56. fxg4 {[%emt 0:0:11]
} hxg4 {[%emt 0:0:2]} 57. Nf1 {[%emt 0:0:6]} Ke4 {[%emt 0:0:0]} 58. Ng3+ {[%emt 0:0:10]} Kf4 {[%emt 0:0:1]} 59. Kd2 {[%emt 0:0:5]} c5 {[%emt 0:0:33]} 60. Nf1 {[%emt 0:0:10]} b4 {[%emt 0:0:14]} 61. Kc2 {[%emt 0:0:0]} Ke4 {[%emt 0:0:13]} 62. Nd2+ {[%emt 0:0:10]} Kd5 {[%emt 0:0:1]} 63. h3 {[%emt 0:0:10]} g3 {[%emt 0:0:17]} 64. Nf1 {[%emt 0:0:6]} Bf6 {[%emt 0:0:0]} 65. cxb4 {[%emt 0:0:12]} cxb4 {[%emt 0:0:1]} 66. Nxg3 {[%emt 0:0:0]} Kd4 {[%emt 0:0:3]} 67. Nf5+ {[%emt 0:0:11]} Ke4 {[%emt 0:0:8]} 68. g4 {[%emt 0:0:12]} Be5 {[%emt 0:0:23]} 69. Ne7 {[%emt 0:0:16]} Bf6 {[%emt 0:0:0]} 1/2-1/2

[Event "FIDE World Rapid-ch Open 2018"]
[White "Gasanov, Eldar"]
[Black "Bilguun, Sumiya"]
[Site "St. Petersburg"]
[Round "2.78"]
[Annotator "ChessBase"]
[Result "1-0"]
[Date "2018.12.26"]
[WhiteElo "2499"]
[BlackElo "2497"]
[PlyCount "75"]
[TimeControl "900+10"]

1. c4 {[%emt 0:0:0]} e6 {[%emt 0:0:0]} 2. Nf3 {[%emt 0:0:9]} d5 {[%emt 0:0:0]} 3. e3 {[%emt 0:0:8]} Nf6 {[%emt 0:0:0]} 4. b3 {[%emt 0:0:8]} b6 {[%emt 0:1:1]
} 5. Bb2 {[%emt 0:0:14]} Be7 {[%emt 0:0:6]} 6. Nc3 {[%emt 0:0:0]} 0-0 7. cxd5 {[%emt 0:0:25]} exd5 {[%emt 0:1:2]} 8. Rc1 {[%emt 0:0:0]} c6 {[%emt 0:1:34]} 9. Qc2 {[%emt 0:1:25]} Bd6 {[%emt 0:0:33]} 10. d4 {[%emt 0:1:27]
} Re8 {[%emt 0:0:16]} 11. Bd3 {[%emt 0:0:20]} Bg4 {[%emt 0:0:0]} 12. Nd2 {[%emt 0:0:42]} Nh5 {[%emt 0:3:14]} 13. 0-0 {[%emt 0:4:7]} Qg5 {[%emt 0:2:31]} 14. f4 {[%emt 0:2:32]} Qh6 {[%emt 0:0:1]} 15. Rce1 {[%emt 0:0:31]
} Nd7 {[%emt 0:1:15]} 16. h3 {[%emt 0:0:51]} Ng3 {[%emt 0:0:0]} 17. hxg4 {[%emt 0:0:49]} Nxf1 {[%emt 0:1:14]} 18. Nxf1 {[%emt 0:0:37]} Bxf4 {[%emt 0:0:16]} 19. e4 {[%emt 0:0:10]} Nf6 {[%emt 0:0:16]} 20. g3 {[%emt 0:0:33]
} Bg5 {[%emt 0:1:1]} 21. Qe2 {[%emt 0:0:18]} dxe4 {[%emt 0:0:0]} 22. Nxe4 {[%emt 0:0:14]} Nd5 {[%emt 0:0:11]} 23. Qf3 {[%emt 0:0:12]} Rad8 {[%emt 0:0:25]} 24. Re2 {[%emt 0:0:32]} Bc1 {[%emt 0:0:35]} 25. Rh2 {[%emt 0:0:45]
} Qxh2+ {[%emt 0:0:2]} 26. Kxh2 {[%emt 0:0:14]} Bxb2 {[%emt 0:0:0]} 27. Ng5 {[%emt 0:0:11]} Nf6 {[%emt 0:0:17]} 28. Bc4 {[%emt 0:0:23]} Re7 {[%emt 0:0:18]} 29. Nxf7 {[%emt 0:0:16]} Rxd4 {[%emt 0:0:15]} 30. Ne5+ {[%emt 0:0:17]
} Rxc4 {[%emt 0:0:18]} 31. Nxc4 {[%emt 0:0:6]} Bd4 {[%emt 0:0:0]} 32. Qxc6 {[%emt 0:0:23]} Re2+ {[%emt 0:0:12]} 33. Kh3 {[%emt 0:0:7]
} h6 {[%emt 0:0:1]} 34. Nfd2 {[%emt 0:0:36]} Bg1 {[%emt 0:0:16]} 35. Nf3 {[%emt 0:0:6]
} Ne4 {[%emt 0:0:7]} 36. Qc8+ {[%emt 0:0:8]} Kh7 {[%emt 0:0:0]} 37. Qf5+ {[%emt 0:0:3]} Kh8 {[%emt 0:0:3]} 38. Nxg1 {[%emt 0:0:7]} 1-0

[Event "FIDE World Rapid-ch Open 2018"]
[White "Pershin, Denis"]
[Black "Gabrielian, Artur"]
[Site "St. Petersburg"]
[Round "2.79"]
[Annotator "ChessBase"]
[Result "0-1"]
[Date "2018.12.26"]
[WhiteElo "2400"]
[BlackElo "2499"]
[PlyCount "94"]
[TimeControl "900+10"]

1. e4 c5 2. Nf3 d6 3. d4 cxd4 4. Nxd4 Nf6 5. Nc3 Nc6 6. Bg5 e6 7. Qd2 a6 8. 0-0-0 Bd7 9. f4 Be7 10. Nf3 b5 11. e5 b4 12. exf6 bxc3 13. Qxc3 gxf6 14. Bh4 a5 15. a3 Rc8 16. Qe3 Qc7 17. Bd3 a4 18. Nd4 Na5 19. Nb5 Qc5 20. Qxc5 Rxc5 21. Nc3 f5 22. Bf2 Rc8 23. Rhe1 Nc4 24. Be2 Rg8 25. Bxc4 Rxc4 26. g3 h5 27. Rd4 Rxd4 28. Bxd4 h4 29. Re3 Bc6 30. b3 e5 31. Bb6 exf4 32. gxf4 Rg1+ 33. Kb2 Rg2 34. bxa4 Rxh2 35. a5 Kd7 36. a6 Bf6 37. Kb3 Rg2 38. a7 Rg8 39. a4 Bg2 40. Rd3 h3 41. Bg1 Ba8 42. Nd5 Bd8 43. Bh2 Rg2 44. Bg3 Rxg3 45. Rxg3 h2 46. Rh3 Bxd5+ 47. c4 h1=Q 0-1